fUST/lending_fUST_20250314
["ID","MTS","AMOUNT","RATE_DAILY","PERIOD"]
[356119611,1741913434696,-500.0,0.00013698,2]
[356119612,1741913434706,-500.0,0.00013698,2]
[356119613,1741913434716,-500.0,0.00013698,2]
[356119614,1741913434726,-514.95,0.00013698,2]
[356119615,1741913434736,-8020.03,0.00013698,2]
[356119616,1741913434746,-613.05,0.00013698,2]
[356119617,1741913434757,-2666.75,0.00013698,2]
[356119618,1741913434766,-500.0,0.00013698,2]
[356119619,1741913434776,-500.0,0.00013698,2]
[356119620,1741913434786,-500.0,0.00013698,2]
[356119621,1741913434796,-500.0,0.00013698,2]
[356119622,1741913434806,-500.0,0.00013698,2]
[356119623,1741913434816,-12207.86,0.00013698,2]
[356119624,1741913434826,-500.0,0.00013698,2]
[356119625,1741913434836,-1424.3,0.00013698,2]
[356119626,1741913434846,-8029.18,0.00013698,2]
[356119627,1741913434855,-500.0,0.00013698,2]
[356119628,1741913434867,-500.0,0.00013698,2]
[356119629,1741913434876,-541.57,0.00013698,2]
[356119630,1741913434886,-275092.02946175,0.00013698,2]
[356119690,1741913443192,-581.38206806,0.00013698,2]
[356119773,1741914633418,-396.5133959,0.0001256,2]
[356119774,1741914633428,-500.0,0.00012687,2]
[356119775,1741914633439,-300.0,0.00012687,2]
[356119776,1741914633448,-404.56703935,0.00012691,2]
[356119777,1741914633458,-38.23793836,0.00012691,2]
[356119811,1741914643379,-500.0,0.00012687,2]
[356119812,1741914643389,-489.3896207,0.00012687,2]
[356119813,1741914643411,-10.6103793,0.00012687,2]
[356119814,1741914643421,-500.0,0.00012687,2]
[356119815,1741914643430,-500.0,0.00012687,2]
[356119816,1741914643440,-500.0,0.00012687,2]
[356119817,1741914643449,-500.0,0.00012687,2]
[356119818,1741914643459,-500.0,0.00012687,2]
[356119819,1741914643478,-500.0,0.00012687,2]
[356119820,1741914643491,-500.0,0.00012687,2]
[356119821,1741914643500,-500.0,0.00012687,2]
[356119822,1741914643510,-500.0,0.00012687,2]
[356119823,1741914643520,-500.0,0.00012687,2]
[356119824,1741914643529,-500.0,0.00012687,2]
[356119825,1741914643539,-500.0,0.00012687,2]
[356119827,1741914643549,-500.0,0.00012687,2]
[356119829,1741914643559,-393.12690766,0.00012687,2]
[356119831,1741914643568,-500.0,0.00012687,2]
[356119833,1741914643578,-500.0,0.00012687,2]
[356119835,1741914643588,-545.51144953,0.00012691,2]
[356119837,1741914643598,-236.94690544,0.00012691,2]
[356119839,1741914643607,-199.5627625,0.00012691,2]
[356119841,1741914643618,-20.95299949,0.00012691,2]
[356119994,1741914646156,-249.89097236,0.00012691,2]
[356119996,1741914646166,-246.79205688,0.00012691,2]
[356119999,1741914646176,-426.98893185,0.00012691,2]
[356120001,1741914646186,-487.84558254,0.00012691,2]
[356120003,1741914646195,-499.48245637,0.00012692,2]
[356120014,1741914646302,-23214.87099673,0.00012692,2]
[356120015,1741914646312,-6071.03844498,0.00013161,2]
[356120016,1741914646322,-500.0,0.00013164,2]
[356120017,1741914646332,-2303.53402225,0.000132,2]
[356120018,1741914646342,-173.86446314,0.000135,2]
[356120019,1741914646352,-173.8644631,0.00013525,2]
[356120049,1741914646746,-173.8644631,0.00013549,2]
[356120051,1741914646757,-173.8644631,0.00013574,2]
[356120053,1741914646767,-173.8644631,0.00013598,2]
[356120055,1741914646777,-108294.36507463,0.00013598,2]
[356120057,1741914646786,-300.0,0.000136,4]
[356120059,1741914646797,-153.0,0.000136,2]
[356120061,1741914646806,-2000.0,0.000136,2]
[356120063,1741914646816,-2000.0,0.000136,3]
[356120065,1741914646826,-2000.0,0.000136,4]
[356120067,1741914646837,-834.77361048,0.00013656,2]
[356120069,1741914646846,-500.0,0.00013673,2]
[356120071,1741914646856,-500.0,0.00013673,2]
[356120073,1741914646865,-396.93388764,0.00013673,2]
[356120076,1741914646878,-386.12918569,0.00013673,2]
[356120078,1741914646888,-500.0,0.00013673,2]
[356120080,1741914646898,-500.0,0.00013673,2]
[356120082,1741914646908,-500.42651217,0.00013673,2]
[356120084,1741914646921,-500.0,0.00013673,2]
[356120086,1741914646931,-500.0,0.00013673,2]
[356120088,1741914646942,-500.0,0.00013673,2]
[356120090,1741914646951,-500.0,0.00013673,2]
[356120092,1741914646961,-500.0,0.00013673,2]
[356120094,1741914646974,-500.0,0.00013673,2]
[356120096,1741914646983,-500.0,0.00013673,2]
[356120098,1741914646994,-500.10605809,0.00013673,2]
[356120100,1741914647004,-500.0,0.00013673,2]
[356120102,1741914647013,-500.0,0.00013673,2]
[356120104,1741914647023,-500.0,0.00013673,2]
[356120106,1741914647033,-505.09364834,0.00013673,2]
[356120108,1741914647042,-160.79470745,0.00013673,2]
[356120110,1741914647051,-500.0,0.00013673,2]
[356120112,1741914647060,-500.0,0.00013673,2]
[356120114,1741914647070,-500.0,0.00013673,2]
[356120116,1741914647079,-501.6128383,0.00013673,2]
[356120118,1741914647089,-327.68473679,0.00013673,2]
[356120120,1741914647099,-500.0,0.00013673,2]
[356120122,1741914647110,-500.0,0.00013673,2]
[356120125,1741914647120,-500.0,0.00013673,2]
[356120127,1741914647129,-283.30764325,0.00013673,2]
[356120129,1741914647139,-500.0,0.00013673,2]
[356120131,1741914647149,-500.0,0.00013673,2]
[356120133,1741914647159,-800.0,0.00013693,2]
[356120135,1741914647169,-236.0688824,0.00013697,2]
[356120137,1741914647178,-151.0,0.00013698,2]
[356120139,1741914647187,-500.0,0.00013698,2]
[356120141,1741914647197,-500.0,0.00013698,2]
[356120143,1741914647206,-500.0,0.00013698,2]
[356120145,1741914647215,-500.0,0.00013698,2]
[356120147,1741914647225,-500.0,0.00013698,2]
[356120149,1741914647235,-500.0,0.00013698,2]
[356120151,1741914647245,-500.0,0.00013698,2]
[356120153,1741914647255,-500.0,0.00013698,2]
[356120155,1741914647265,-500.0,0.00013698,2]
[356120157,1741914647274,-500.0,0.00013698,2]
[356120159,1741914647285,-500.0,0.00013698,2]
[356120161,1741914647296,-500.0,0.00013698,2]
[356120163,1741914647306,-500.0,0.00013698,2]
[356120165,1741914647315,-500.0,0.00013698,2]
[356120167,1741914647325,-500.0,0.00013698,2]
[356120169,1741914647334,-500.0,0.00013698,2]
[356120171,1741914647344,-658.01,0.00013698,2]
[356120173,1741914647354,-660.89,0.00013698,2]
[356120175,1741914647363,-500.0,0.00013698,2]
[356120178,1741914647374,-616.34,0.00013698,2]
[356120180,1741914647383,-353.47328592,0.00013698,2]
[356120182,1741914647393,-500.0,0.00013698,2]
[356120184,1741914647402,-500.0,0.00013698,2]
[356120186,1741914647412,-1182.47,0.00013698,2]
[356120188,1741914647421,-294.48904081,0.00013698,2]
[356120190,1741914647431,-500.0,0.00013698,2]
[356120192,1741914647440,-500.0,0.00013698,2]
[356120194,1741914647449,-579.42,0.00013698,2]
[356120196,1741914647459,-500.0,0.00013698,2]
[356120198,1741914647468,-520.1,0.00013698,2]
[356120200,1741914647478,-500.0,0.00013698,2]
[356120202,1741914647488,-500.0,0.00013698,2]
[356120204,1741914647497,-598.66,0.00013698,2]
[356120206,1741914647507,-500.0,0.00013698,2]
[356120208,1741914647516,-500.0,0.00013698,2]
[356120210,1741914647526,-500.0,0.00013698,2]
[356120212,1741914647535,-500.0,0.00013698,2]
[356120214,1741914647544,-859.43,0.00013698,2]
[356120216,1741914647554,-500.0,0.00013698,2]
[356120218,1741914647564,-772.82,0.00013698,2]
[356120220,1741914647573,-500.0,0.00013698,2]
[356120222,1741914647583,-543.88,0.00013698,2]
[356120224,1741914647592,-500.0,0.00013698,2]
[356120226,1741914647602,-596.93,0.00013698,2]
[356120228,1741914647612,-500.0,0.00013698,2]
[356120230,1741914647621,-837.4,0.00013698,2]
[356120232,1741914647631,-500.0,0.00013698,2]
[356120234,1741914647641,-1158.59,0.00013698,2]
[356120236,1741914647652,-500.0,0.00013698,2]
[356120238,1741914647662,-500.0,0.00013698,2]
[356120240,1741914647672,-500.0,0.00013698,2]
[356120242,1741914647682,-828.84,0.00013698,2]
[356120244,1741914647691,-500.0,0.00013698,2]
[356120246,1741914647701,-151.0,0.00013698,2]
[356120248,1741914647711,-647.27,0.00013698,2]
[356120250,1741914647721,-607.36,0.00013698,2]
[356120253,1741914647732,-500.0,0.00013698,2]
[356120255,1741914647742,-151.0,0.00013698,2]
[356120257,1741914647752,-500.0,0.00013698,2]
[356120259,1741914647762,-936.75,0.00013698,2]
[356120261,1741914647772,-151.0,0.00013698,2]
[356120264,1741914647782,-500.0,0.00013698,2]
[356120266,1741914647805,-500.0,0.00013698,2]
[356120268,1741914647815,-854.96,0.00013698,2]
[356120270,1741914647826,-584.2,0.00013698,2]
[356120272,1741914647838,-500.0,0.00013698,2]
[356120275,1741914647849,-500.0,0.00013698,2]
[356120277,1741914647859,-500.0,0.00013698,2]
[356120279,1741914647869,-907.88,0.00013698,2]
[356120281,1741914647880,-500.0,0.00013698,2]
[356120283,1741914647891,-500.0,0.00013698,2]
[356120285,1741914647902,-500.0,0.00013698,2]
[356120287,1741914647912,-500.0,0.00013698,2]
[356120289,1741914647927,-500.0,0.00013698,2]
[356120291,1741914647937,-500.0,0.00013698,2]
[356120294,1741914647948,-500.0,0.00013698,2]
[356120296,1741914647959,-505.59,0.00013698,2]
[356120298,1741914647970,-500.0,0.00013698,2]
[356120300,1741914647980,-500.0,0.00013698,2]
[356120302,1741914647991,-833.63,0.00013698,2]
[356120304,1741914648004,-500.0,0.00013698,2]
[356120306,1741914648014,-500.0,0.00013698,2]
[356120308,1741914648025,-500.0,0.00013698,2]
[356120310,1741914648035,-500.0,0.00013698,2]
[356120313,1741914648046,-500.0,0.00013698,2]
[356120315,1741914648058,-500.0,0.00013698,2]
[356120317,1741914648069,-500.0,0.00013698,2]
[356120319,1741914648080,-500.0,0.00013698,2]
[356120321,1741914648091,-500.0,0.00013698,2]
[356120323,1741914648102,-500.0,0.00013698,2]
[356120325,1741914648112,-500.0,0.00013698,2]
[356120328,1741914648123,-514.38997073,0.00013698,2]
[356120330,1741914648134,-500.0,0.00013698,2]
[356120332,1741914648145,-500.0,0.00013698,2]
[356120334,1741914648155,-500.0,0.00013698,2]
[356120336,1741914648167,-500.0,0.00013698,2]
[356120338,1741914648178,-500.0,0.00013698,2]
[356120340,1741914648190,-685.01,0.00013698,2]
[356120343,1741914648200,-500.0,0.00013698,2]
[356120345,1741914648211,-500.0,0.00013698,2]
[356120347,1741914648221,-358.26,0.00013698,2]
[356120349,1741914648231,-791.08,0.00013698,2]
[356120351,1741914648241,-500.0,0.00013698,2]
[356120353,1741914648252,-500.0,0.00013698,2]
[356120355,1741914648262,-573.54,0.00013698,2]
[356120357,1741914648274,-500.0,0.00013698,2]
[356120359,1741914648284,-500.0,0.00013698,2]
[356120362,1741914648296,-500.0,0.00013698,2]
[356120364,1741914648306,-552.2,0.00013698,2]
[356120366,1741914648316,-500.0,0.00013698,2]
[356120368,1741914648327,-500.0,0.00013698,2]
[356120370,1741914648338,-500.0,0.00013698,2]
[356120372,1741914648348,-1162.97,0.00013698,2]
[356120374,1741914648359,-553.26,0.00013698,2]
[356120376,1741914648370,-500.0,0.00013698,2]
[356120378,1741914648380,-500.0,0.00013698,2]
[356120380,1741914648391,-500.0,0.00013698,2]
[356120382,1741914648402,-500.0,0.00013698,2]
[356120384,1741914648412,-500.0,0.00013698,2]
[356120387,1741914648424,-500.0,0.00013698,2]
[356120389,1741914648434,-1662.1,0.00013698,2]
[356120391,1741914648444,-500.0,0.00013698,2]
[356120393,1741914648454,-59979.52,0.00013698,2]
[356120395,1741914648464,-500.0,0.00013698,2]
[356120397,1741914648475,-500.0,0.00013698,2]
[356120399,1741914648485,-967.68,0.00013698,2]
[356120401,1741914648495,-7957.47,0.00013698,2]
[356120403,1741914648506,-500.0,0.00013698,2]
[356120405,1741914648516,-500.0,0.00013698,2]
[356120407,1741914648526,-854.28,0.00013698,2]
[356120409,1741914648536,-624.4,0.00013698,2]
[356120411,1741914648546,-500.0,0.00013698,2]
[356120414,1741914648558,-500.0,0.00013698,2]
[356120416,1741914648568,-2633.58,0.00013698,2]
[356120418,1741914648579,-560.68,0.00013698,2]
[356120420,1741914648589,-500.0,0.00013698,2]
[356120422,1741914648602,-1000.0,0.00013698,2]
[356120424,1741914648612,-1000.0,0.00013698,2]
[356120426,1741914648622,-1000.0,0.00013698,2]
[356120429,1741914648633,-1000.0,0.00013698,2]
[356120431,1741914648644,-1000.0,0.00013698,2]
[356120433,1741914648656,-1000.0,0.00013698,2]
[356120435,1741914648666,-690.38,0.00013698,2]
[356120437,1741914648677,-1000.0,0.00013698,2]
[356120439,1741914648687,-1000.0,0.00013698,2]
[356120441,1741914648697,-1000.0,0.00013698,2]
[356120444,1741914648708,-1000.0,0.00013698,2]
[356120446,1741914648718,-846.0,0.00013698,2]
[356120448,1741914648728,-500.0,0.00013698,2]
[356120450,1741914648738,-1303.33,0.00013698,2]
[356120452,1741914648748,-2537.84,0.00013698,2]
[356120454,1741914648758,-1057.52,0.00013698,2]
[356120456,1741914648768,-500.0,0.00013698,2]
[356120458,1741914648780,-555.81449353,0.00013698,2]
[356120460,1741914648791,-6395.58,0.00013698,2]
[356120462,1741914648802,-500.0,0.00013698,2]
[356120464,1741914648812,-500.0,0.00013698,2]
[356120466,1741914648822,-500.0,0.00013698,2]
[356120469,1741914648833,-500.0,0.00013698,2]
[356120471,1741914648844,-500.0,0.00013698,2]
[356120473,1741914648854,-592.99,0.00013698,2]
[356120475,1741914648864,-1733.44,0.00013698,2]
[356120477,1741914648875,-804.0,0.00013698,2]
[356120479,1741914648886,-9284.89,0.00013698,2]
[356120481,1741914648897,-500.0,0.00013698,2]
[356120483,1741914648908,-852.33,0.00013698,2]
[356120485,1741914648920,-1687.25,0.00013698,2]
[356120488,1741914648934,-7685.86,0.00013698,2]
[356120490,1741914648944,-500.0,0.00013698,2]
[356120492,1741914648954,-621.05,0.00013698,2]
[356120494,1741914648964,-545.76,0.00013698,2]
[356120496,1741914648976,-500.0,0.00013698,2]
[356120498,1741914648986,-511.3,0.00013698,2]
[356120500,1741914648996,-1173.23,0.00013698,2]
[356120502,1741914649007,-500.0,0.00013698,2]
[356120504,1741914649017,-500.0,0.00013698,2]
[356120506,1741914649026,-500.0,0.00013698,2]
[356120508,1741914649036,-560.70638357,0.00013698,2]
[356120510,1741914649045,-500.0,0.00013698,2]
[356120512,1741914649056,-875.22,0.00013698,2]
[356120514,1741914649065,-500.0,0.00013698,2]
[356120516,1741914649076,-500.0,0.00013698,2]
[356120518,1741914649086,-500.0,0.00013698,2]
[356120520,1741914649095,-4986.74,0.00013698,2]
[356120522,1741914649105,-524.09,0.00013698,2]
[356120524,1741914649115,-220.79674614,0.00013698,2]
[356120526,1741914649125,-547.20015439,0.00013698,2]
[356120529,1741914649134,-1364.96,0.00013698,2]
[356120531,1741914649144,-500.0,0.00013698,2]
[356120533,1741914649154,-500.0,0.00013698,2]
[356120535,1741914649164,-517.07,0.00013698,2]
[356120537,1741914649174,-500.0,0.00013698,2]
[356120539,1741914649183,-2658.48,0.00013698,2]
[356120541,1741914649193,-500.0,0.00013698,2]
[356120543,1741914649203,-2475.54,0.00013698,2]
[356120545,1741914649213,-500.0,0.00013698,2]
[356120547,1741914649223,-1283.89,0.00013698,2]
[356120549,1741914649233,-937.26,0.00013698,2]
[356120551,1741914649243,-500.0,0.00013698,2]
[356120553,1741914649253,-1070.25,0.00013698,2]
[356120556,1741914649263,-500.0,0.00013698,2]
[356120558,1741914649273,-500.0,0.00013698,2]
[356120560,1741914649283,-500.0,0.00013698,2]
[356120562,1741914649296,-500.0,0.00013698,2]
[356120564,1741914649305,-500.0,0.00013698,2]
[356120566,1741914649315,-954.79,0.00013698,2]
[356120568,1741914649326,-1170.1,0.00013698,2]
[356120570,1741914649335,-522.84,0.00013698,2]
[356120572,1741914649345,-500.0,0.00013698,2]
[356120574,1741914649355,-500.0,0.00013698,2]
[356120576,1741914649364,-500.0,0.00013698,2]
[356120578,1741914649374,-3783.65,0.00013698,2]
[356120580,1741914649385,-23295.08,0.00013698,2]
[356120583,1741914649396,-500.0,0.00013698,2]
[356120585,1741914649405,-500.0,0.00013698,2]
[356120587,1741914649415,-4670.91,0.00013698,2]
[356120589,1741914649425,-500.0,0.00013698,2]
[356120591,1741914649435,-500.0,0.00013698,2]
[356120593,1741914649445,-500.0,0.00013698,2]
[356120595,1741914649454,-1479.25,0.00013698,2]
[356120597,1741914649464,-500.0,0.00013698,2]
[356120599,1741914649473,-500.0,0.00013698,2]
[356120601,1741914649484,-500.0,0.00013698,2]
[356120603,1741914649493,-500.0,0.00013698,2]
[356120605,1741914649503,-151.0,0.00013698,2]
[356120607,1741914649513,-151.0,0.00013698,2]
[356120609,1741914649523,-500.0,0.00013698,2]
[356120611,1741914649532,-569.90161254,0.00013698,2]
[356120613,1741914649542,-500.0,0.00013698,2]
[356120615,1741914649552,-1461.67,0.00013698,2]
[356120617,1741914649562,-500.0,0.00013698,2]
[356120620,1741914649572,-500.0,0.00013698,2]
[356120622,1741914649582,-11821.12,0.00013698,2]
[356120624,1741914649591,-500.0,0.00013698,2]
[356120626,1741914649601,-500.0,0.00013698,2]
[356120628,1741914649610,-5352.47,0.00013698,2]
[356120630,1741914649620,-500.0,0.00013698,2]
[356120632,1741914649629,-1776.22,0.00013698,2]
[356120634,1741914649639,-500.0,0.00013698,2]
[356120636,1741914649650,-1642.47,0.00013698,2]
[356120638,1741914649660,-500.0,0.00013698,2]
[356120640,1741914649670,-519.98,0.00013698,2]
[356120642,1741914649680,-500.0,0.00013698,2]
[356120644,1741914649690,-665.88,0.00013698,2]
[356120646,1741914649700,-500.0,0.00013698,2]
[356120648,1741914649709,-500.0,0.00013698,2]
[356120650,1741914649719,-500.0,0.00013698,2]
[356120652,1741914649728,-500.0,0.00013698,2]
[356120654,1741914649737,-500.0,0.00013698,2]
[356120656,1741914649747,-500.0,0.00013698,2]
[356120658,1741914649756,-2678.63,0.00013698,2]
[356120660,1741914649765,-500.0,0.00013698,2]
[356120662,1741914649775,-511.36814615,0.00013698,2]
[356120664,1741914649785,-500.0,0.00013698,2]
[356120666,1741914649794,-500.0,0.00013698,2]
[356120669,1741914649804,-500.0,0.00013698,2]
[356120671,1741914649813,-500.0,0.00013698,2]
[356120673,1741914649823,-940.53,0.00013698,2]
[356120675,1741914649832,-500.0,0.00013698,2]
[356120677,1741914649842,-170.70592075,0.00013698,2]
[356120679,1741914649851,-500.0,0.00013698,2]
[356120681,1741914649860,-500.0,0.00013698,2]
[356120683,1741914649869,-500.0,0.00013698,2]
[356120685,1741914649878,-500.0,0.00013698,2]
[356120687,1741914649887,-500.0,0.00013698,2]
[356120689,1741914649901,-887.05,0.00013698,2]
[356120691,1741914649912,-1151.01,0.00013698,2]
[356120693,1741914649925,-500.0,0.00013698,2]
[356120695,1741914649935,-500.0,0.00013698,2]
[356120697,1741914649945,-7607.75,0.00013698,2]
[356120699,1741914649954,-500.0,0.00013698,2]
[356120701,1741914649965,-1281.54,0.00013698,2]
[356120703,1741914649974,-500.0,0.00013698,2]
[356120705,1741914649984,-1146.7,0.00013698,2]
[356120707,1741914649993,-500.0,0.00013698,2]
[356120709,1741914650003,-500.0,0.00013698,2]
[356120711,1741914650013,-500.0,0.00013698,2]
[356120713,1741914650023,-500.0,0.00013698,2]
[356120715,1741914650032,-506.65819664,0.00013698,2]
[356120717,1741914650042,-500.0,0.00013698,2]
[356120719,1741914650056,-500.0,0.00013698,2]
[356120722,1741914650066,-793.02,0.00013698,2]
[356120724,1741914650075,-500.0,0.00013698,2]
[356120726,1741914650084,-2827.88,0.00013698,2]
[356120728,1741914650094,-500.0,0.00013698,2]
[356120730,1741914650103,-500.0,0.00013698,2]
[356120732,1741914650112,-151.0,0.00013698,2]
[356120734,1741914650122,-151.0,0.00013698,2]
[356120736,1741914650131,-151.0,0.00013698,2]
[356120738,1741914650140,-500.0,0.00013698,2]
[356120740,1741914650150,-500.0,0.00013698,2]
[356120742,1741914650159,-708.29,0.00013698,2]
[356120744,1741914650168,-500.0,0.00013698,2]
[356120746,1741914650178,-500.0,0.00013698,2]
[356120748,1741914650187,-1000.86,0.00013698,2]
[356120750,1741914650197,-500.0,0.00013698,2]
[356120752,1741914650206,-151.0,0.00013698,2]
[356120755,1741914650217,-151.0,0.00013698,2]
[356120757,1741914650226,-726.4,0.00013698,2]
[356120759,1741914650235,-500.0,0.00013698,2]
[356120761,1741914650245,-12352.27,0.00013698,2]
[356120763,1741914650254,-514.4418637,0.00013698,2]
[356120765,1741914650263,-151.0,0.00013698,2]
[356120767,1741914650272,-151.0,0.00013698,2]
[356120769,1741914650281,-226.998393,0.00013698,2]
[356120771,1741914650291,-500.0,0.00013698,2]
[356120773,1741914650300,-513.97764664,0.00013698,2]
[356120775,1741914650310,-604.6,0.00013698,2]
[356120777,1741914650319,-780.25,0.00013698,2]
[356120779,1741914650328,-593.88,0.00013698,2]
[356120781,1741914650337,-500.0,0.00013698,2]
[356120783,1741914650347,-1044.0,0.00013698,2]
[356120785,1741914650356,-1272.89,0.00013698,2]
[356120787,1741914650366,-4592.94,0.00013698,2]
[356120789,1741914650375,-500.0,0.00013698,2]
[356120791,1741914650384,-742.65,0.00013698,2]
[356120793,1741914650394,-540.05614733,0.00013698,2]
[356120795,1741914650404,-500.0,0.00013698,2]
[356120797,1741914650413,-500.0,0.00013698,2]
[356120799,1741914650423,-500.0,0.00013698,2]
[356120801,1741914650432,-500.0,0.00013698,2]
[356120803,1741914650442,-1200.98,0.00013698,2]
[356120804,1741914650451,-613.06875572,0.00013698,2]
[356120805,1741914650461,-1129.7,0.00013698,2]
[356120806,1741914650470,-500.0,0.00013698,2]
[356120807,1741914650479,-786.71,0.00013698,2]
[356120808,1741914650489,-576.67,0.00013698,2]
[356120809,1741914650499,-530.68,0.00013698,2]
[356120810,1741914650508,-500.0,0.00013698,2]
[356120811,1741914650517,-1815.04,0.00013698,2]
[356120812,1741914650527,-559.06,0.00013698,2]
[356120813,1741914650536,-500.0,0.00013698,2]
[356120814,1741914650546,-620.48,0.00013698,2]
[356120815,1741914650555,-500.0,0.00013698,2]
[356120816,1741914650565,-500.0,0.00013698,2]
[356120817,1741914650574,-331.294132,0.00013698,2]
[356120818,1741914650585,-500.0,0.00013698,2]
[356120819,1741914650594,-500.0,0.00013698,2]
[356120820,1741914650603,-331.294132,0.00013698,2]
[356120821,1741914650613,-600.0,0.00013699,2]
[356120822,1741914650622,-980.3203353,0.00013699,2]
[356120823,1741914650632,-706.726738,0.00013699,2]
[356120825,1741914650641,-151.0,0.00013699,2]
[356120827,1741914650652,-943.3317099,0.00013699,2]
[356120829,1741914650661,-6824.50917773,0.00013699,2]
[356120832,1741914650671,-205.7046506,0.00013699,2]
[356120833,1741914650680,-151.0,0.00013699,2]
[356120835,1741914650689,-151.0,0.00013699,2]
[356120837,1741914650699,-283.681339,0.00013699,2]
[356120839,1741914650708,-151.0,0.00013699,2]
[356120841,1741914650717,-151.0,0.00013699,2]
[356120843,1741914650727,-151.0,0.00013699,2]
[356120845,1741914650736,-151.0,0.00013699,2]
[356120847,1741914650746,-151.0,0.00013699,2]
[356120849,1741914650756,-151.0,0.00013699,2]
[356120852,1741914650765,-151.0,0.00013699,2]
[356120854,1741914650775,-151.0,0.00013699,2]
[356120856,1741914650784,-151.0,0.00013699,2]
[356120857,1741914650793,-278.967756,0.00013699,2]
[356120860,1741914650803,-151.264434,0.00013699,2]
[356120862,1741914650812,-151.0,0.00013699,2]
[356120864,1741914650822,-151.0,0.00013699,2]
[356120866,1741914650831,-151.0,0.00013699,2]
[356120868,1741914650840,-151.0,0.00013699,2]
[356120870,1741914650849,-151.0,0.00013699,2]
[356120872,1741914650859,-151.0,0.00013699,2]
[356120874,1741914650869,-151.0,0.00013699,2]
[356120876,1741914650878,-151.0,0.00013699,2]
[356120878,1741914650889,-151.0,0.00013699,2]
[356120880,1741914650899,-151.0,0.00013699,2]
[356120882,1741914650910,-151.0,0.00013699,2]
[356120884,1741914650923,-296.617118,0.00013699,2]
[356120886,1741914650934,-808.0,0.00013699,2]
[356120888,1741914650945,-616.92463471,0.00013699,2]
[356120890,1741914650955,-616.92463471,0.00013699,2]
[356120920,1741914651224,-616.92463471,0.00013699,2]
[356120922,1741914651235,-616.92463471,0.00013699,2]
[356120924,1741914651245,-616.92463471,0.00013699,2]
[356120926,1741914651255,-616.92463471,0.00013699,2]
[356120928,1741914651265,-616.92463471,0.00013699,2]
[356120930,1741914651274,-616.92463471,0.00013699,2]
[356120932,1741914651284,-616.92463471,0.00013699,2]
[356120934,1741914651293,-616.92463471,0.00013699,2]
[356120936,1741914651304,-616.92463471,0.00013699,2]
[356120938,1741914651313,-616.92463471,0.00013699,2]
[356120940,1741914651323,-616.92463471,0.00013699,2]
[356120943,1741914651333,-616.92463471,0.00013699,2]
[356120945,1741914651342,-616.92463471,0.00013699,2]
[356120947,1741914651352,-616.92463471,0.00013699,2]
[356120949,1741914651362,-616.92463471,0.00013699,2]
[356120951,1741914651371,-616.92463471,0.00013699,2]
[356120953,1741914651381,-616.92463471,0.00013699,2]
[356120955,1741914651391,-616.92463471,0.00013699,2]
[356120957,1741914651401,-616.92463471,0.00013699,2]
[356120959,1741914651410,-616.92463471,0.00013699,2]
[356120961,1741914651420,-616.92463471,0.00013699,2]